{"text_format":"1","workbook":"xlsx","n_sheets":4,"sheets":["Титульный","Кроссворд","Расчетный","Итоговый"],"not_rendered":{"charts":0,"images":9,"macros":1,"external_links":0,"defined_names":0,"comments":1,"pivot_tables":0},"unopened":[],"bounds":{"document_bytes":16777216,"sheet_cells":100000,"rows_first":2000,"rows_last":500,"rows_between":2000,"halvings":0,"cell_chars":16384,"cell_head_chars":4096},"cells_cut":0,"cells_raw":0,"read":"whole","date_system":"1900"}

{"sheet":"Титульный","index":0,"n_rows":21,"n_cols":11,"rows_kept":21,"cut":false,"hidden":false,"merged":[[6,2,8,5],[21,2,23,7],[21,10,23,11]]}
[]
[]
[]
[]
[]
[]
[null,null,"Чернова Анастасия 9В"]
[]
[]
[]
[]
[]
[]
[]
[]
[]
[]
[]
[]
[]
[null,null,"ФИО",null,null,null,null,null,null,null,"Класс"]

{"sheet":"Кроссворд","index":1,"n_rows":0,"n_cols":0,"rows_kept":0,"cut":false,"hidden":false,"merged":[]}

{"sheet":"Расчетный","index":2,"n_rows":19,"n_cols":4,"rows_kept":19,"cut":false,"hidden":true,"merged":[]}
[]
[]
[]
[]
[]
[]
[null,"Ответ ученика","Правильный ответ","Балл"]
[null,{"$f":"CONCATENATE(Кроссворд!V7,Кроссворд!V8,Кроссворд!V9,Кроссворд!V10,Кроссворд!V11,Кроссворд!V12,Кроссворд!V13,Кроссворд!V14,Кроссворд!V15)","v":""},"локальная",{"$f":"IF(B8=C8,1,0)","v":0}]
[null,{"$f":"CONCATENATE(Кроссворд!N13,Кроссворд!N14,Кроссворд!N15,Кроссворд!N16,Кроссворд!N17,Кроссворд!N18)","v":""},"сервер",{"$f":"IF(B9=C9,1,0)","v":0}]
[null,{"$f":"CONCATENATE(Кроссворд!L14,Кроссворд!L15,Кроссворд!L16,Кроссворд!L17,Кроссворд!L18,Кроссворд!L19,Кроссворд!L20,Кроссворд!L21,Кроссворд!L22)","v":""},"провайдер",0]
[null,{"$f":"CONCATENATE(Кроссворд!X2,Кроссворд!X3,Кроссворд!X4,Кроссворд!X5,Кроссворд!X6,Кроссворд!X7,Кроссворд!X8,Кроссворд!X9)","v":""},"интернет",0]
[null,{"$f":"CONCATENATE(Кроссворд!O7,Кроссворд!P7,Кроссворд!Q7,Кроссворд!R7,Кроссворд!S7,Кроссворд!T7,Кроссворд!U7,Кроссворд!V7)","v":""},"протокол",0]
[null,{"$f":"CONCATENATE(Кроссворд!T9,Кроссворд!U9,Кроссворд!V9,Кроссворд!W9,Кроссворд!X9)","v":""},"пакет",0]
[null,{"$f":"CONCATENATE(Кроссворд!J15,Кроссворд!K15,Кроссворд!L15,Кроссворд!M15,Кроссворд!N15,Кроссворд!O15,Кроссворд!P15,Кроссворд!Q15,Кроссворд!R15,Кроссворд!S15,Кроссворд!T15,Кроссворд!U15,Кроссворд!V15)","v":""},"маршрутизация",0]
[null,{"$f":"CONCATENATE(Кроссворд!V11,Кроссворд!W11,Кроссворд!X11,Кроссворд!Y11,Кроссворд!Z11)","v":""},"логин",0]
[null,{"$f":"CONCATENATE(Кроссворд!Q12,Кроссворд!R12,Кроссворд!S12,Кроссворд!T12,Кроссворд!U12,Кроссворд!V12)","v":""},"пароль",0]
[null,{"$f":"CONCATENATE(Кроссворд!R4,Кроссворд!R5,Кроссворд!R6,Кроссворд!R7,Кроссворд!R8,Кроссворд!R9,Кроссворд!R10)","v":""},"хостинг",0]
[null,null,"Итого",{"$f":"SUM(D8:D17)","v":0}]
[null,null,"ОЦЕНКА",{"$f":"IF(D18>=9,5,IF(D18>=7,4,IF(D18>=4,3,2)))","v":2}]

{"sheet":"Итоговый","index":3,"n_rows":13,"n_cols":9,"rows_kept":13,"cut":false,"hidden":false,"merged":[[6,2,8,6],[6,8,8,9],[12,2,15,6]]}
[]
[]
[]
[]
[]
[]
[null,null,{"$f":"Титульный!C22","v":0},null,null,null,null,null,{"$f":"Титульный!K22","v":0}]
[]
[]
[]
[]
[]
[null,null,{"$f":"Расчетный!D19","v":2}]